fUST/lending_fUST_20260124
["ID","MTS","AMOUNT","RATE_DAILY","PERIOD"]
[403206344,1769266307155,-5223.42,0.00018356,2]
[403206345,1769266307165,-500.0,0.00018356,2]
[403206346,1769266307174,-500.0,0.00018356,2]
[403206347,1769266307183,-11112.1229612,0.00018381,2]
[403206348,1769266307193,-316002.45506724,0.000184,2]
[403206349,1769266307202,-2258.0,0.00018429,2]
[403206350,1769266307211,-271.2,0.0001843,2]
[403206351,1769266307220,-561.91995429,0.00018438,2]
[403206352,1769266307231,-312381.43191021,0.00018522,2]
[403206353,1769266307555,-462.38785101,0.00018522,2]
[403206354,1769266307863,-348.0,0.00013698,2]
[403206355,1769266308133,-3e-08,0.00013698,2]
[403206356,1769266308353,-885.66,0.00012329,2]
[403206357,1769266308363,-2713.49999997,0.00013698,2]
[403206358,1769266308372,-500.0,0.00013698,2]
[403206359,1769266308381,-3061.5,0.00013972,2]
[403206360,1769266308391,-192.908756,0.00013972,2]
[403206361,1769266308400,-500.0,0.00013972,2]
[403206362,1769266308409,-192.908756,0.00014013,2]
[403206363,1769266308419,-3061.5,0.00014246,2]
[403206364,1769266308429,-500.0,0.00014246,2]
[403206365,1769266308438,-3061.5,0.0001452,2]
[403206366,1769266308447,-192.908756,0.0001452,2]
[403206367,1769266308456,-1921.40079609,0.00014794,2]
[403206374,1769266357424,150.0,9.065e-05,2]
[403206375,1769266357814,242.0,9.89e-05,2]
[403206377,1769266409896,-300.0,0.00010636,2]
[403206378,1769266409920,-300.0,0.00010637,2]
[403206379,1769266409942,-106.01656362,0.00010637,2]
[403206380,1769266435937,165.24,8.132e-05,2]
[403206381,1769266436383,330.48,8.871e-05,2]
[403206382,1769266436799,495.72,9.61e-05,2]
[403206388,1769266449089,3691.32,0.00010182,2]
[403206389,1769266449135,1023.39,0.00010182,2]
[403206403,1769266484752,-174.55863356,0.00010349,2]
[403206405,1769266486717,-213.36456939,0.00010349,2]
[403206406,1769266491452,-260.64252342,0.00010349,2]
[403206409,1769266514912,188.67,8.076e-05,2]
[403206410,1769266515308,377.34,8.81e-05,2]
[403206411,1769266515738,566.02,9.544e-05,2]
[403206428,1769266592889,500.0,0.000154,120]
[403206429,1769266593504,174.26,8.054e-05,2]
[403206431,1769266593881,348.53,8.786e-05,2]
[403206432,1769266594435,522.79,9.518e-05,2]
[403206452,1769266628656,-697.06,0.0001025,2]
[403206462,1769266641572,5000.0,0.0001025,2]
[403206464,1769266645143,1207.4437662,9.65e-05,2]
[403206489,1769266659493,-511.7509552,0.000104,2]
[403206490,1769266659553,-300.0,0.00010635,2]
[403206491,1769266659610,-296.94512295,0.00010636,2]
[403206492,1769266659667,-500.0,0.00010636,2]
[403206493,1769266659727,-500.0,0.00010636,2]
[403206494,1769266659786,-496.01233731,0.00010636,2]
[403206495,1769266659842,-500.0,0.00010636,2]
[403206496,1769266659902,-500.0,0.00010636,2]
[403206497,1769266659960,-500.0,0.00010636,2]
[403206498,1769266660016,-500.0,0.00010636,2]
[403206499,1769266660074,-354.07254823,0.00010636,2]
[403206500,1769266660667,-82.44807262,0.00010636,2]
[403206501,1769266660733,-401.31421024,0.00010636,2]
[403206502,1769266660793,-500.0,0.00010636,2]
[403206503,1769266660858,-500.0,0.00010636,2]
[403206504,1769266660915,-500.0,0.00010636,2]
[403206505,1769266660971,-558.98075598,0.00010636,2]
[403206506,1769266661025,-314.70637469,0.00010636,2]
[403206507,1769266661091,-500.0,0.00010636,2]
[403206508,1769266661152,-155.70157891,0.00010636,2]
[403206509,1769266661211,-500.0,0.00010636,2]
[403206510,1769266661271,-300.0,0.00010636,2]
[403206511,1769266661331,-300.0,0.00010636,2]
[403206512,1769266661513,-1200.0,0.00010636,2]
[403206517,1769266662760,-9075.79894273,0.00010637,2]
[403206518,1769266662822,-10000.01,0.00010637,2]
[403206519,1769266662878,-10000.01,0.00010637,2]
[403206520,1769266662944,-10000.01,0.00010637,2]
[403206521,1769266662988,-10000.01,0.00010637,2]
[403206525,1769266665342,-500.0,0.00010636,2]
[403206526,1769266665404,-500.0,0.00010636,2]
[403206527,1769266665475,-500.0,0.00010636,2]
[403206528,1769266665542,-500.0,0.00010636,2]
[403206529,1769266665604,-500.0,0.00010636,2]
[403206530,1769266665663,-455.07130295,0.00010636,2]
[403206531,1769266665721,-300.0,0.00010636,2]
[403206532,1769266665777,-924.16105727,0.00010637,2]
[403206533,1769266665839,-193.98343638,0.00010637,2]
[403206534,1769266665899,-300.0,0.00010637,2]
[403206536,1769266666121,-300.0,0.00010637,2]
[403206539,1769266666571,-300.0,0.00010637,2]
[403206541,1769266666630,-300.0,0.00010637,2]
[403206542,1769266666691,-300.0,0.00010637,2]
[403206543,1769266666753,-300.0,0.00010637,2]
[403206544,1769266666822,-300.0,0.00010637,2]
[403206545,1769266666888,-300.0,0.00010637,2]
[403206547,1769266666950,-300.0,0.00010637,2]
[403206548,1769266667023,-300.0,0.00010637,2]
[403206549,1769266667097,-300.0,0.00010637,2]
[403206550,1769266667164,-300.0,0.00010637,2]
[403206551,1769266667229,-300.0,0.00010637,2]
[403206552,1769266667294,-600.0,0.00010637,2]
[403206553,1769266667358,-314.17061171,0.0001069,2]
[403206554,1769266667814,-2835.4153703,0.00010743,2]
[403206556,1769266667952,-5000.0,0.00011032,2]
[403206558,1769266671088,0.01,8.028e-05,2]
[403206559,1769266671120,152.71,8.028e-05,2]
[403206560,1769266671465,305.43,8.757e-05,2]
[403206561,1769266671902,458.15,9.487e-05,2]
[403206564,1769266674551,-610.86,0.00010217,2]
[403206570,1769266689783,-5000.0,0.0001073,2]
[403206577,1769266701317,-5000.0,0.00010838,2]
[403206578,1769266701346,-763.58,0.00010947,2]
[403206579,1769266701372,-300.0,0.00011031,2]
[403206580,1769266701404,-17936.42,0.00011032,2]
[403206584,1769266710411,5000.0,0.00011032,2]
[403206587,1769266715615,207.86158607,0.00011031,2]
[403206590,1769266720799,159.61340232,0.00011031,2]
[403206591,1769266720864,339.88675066,0.00011031,2]
[403206601,1769266733519,4292.64826095,0.00011032,2]
[403206603,1769266733578,707.35173905,0.00011032,2]
[403206607,1769266742129,-9292.65826095,0.00011032,2]
[403206610,1769266742462,-10000.01,0.00011032,2]
[403206612,1769266745523,-300.0,0.00011031,2]
[403206614,1769266747256,162.94,8.056e-05,2]
[403206615,1769266747678,325.89,8.788e-05,2]
[403206616,1769266748142,488.83,9.52e-05,2]
[403206618,1769266748852,651.77,0.00010253,2]
[403206619,1769266749516,814.72,0.00010985,2]
[403206622,1769266756122,5000.0,0.00011032,2]
[403206632,1769266779932,1955.86,0.00011032,2]
[403206633,1769266779981,3044.14,0.00011032,2]
[403206646,1769266802983,300.0,0.00011031,2]
[403206647,1769266803232,5000.0,0.00011032,2]
[403206649,1769266804345,575.0,0.00011032,2]
[403206653,1769266809409,1080.87,0.00011031,2]
[403206654,1769266809459,119.13,0.00011031,2]
[403206662,1769266824637,263.67,0.00010424,2]
[403206663,1769266826258,5000.0,0.00011032,2]
[403206674,1769266850462,1748.73966713,0.00010932,2]
[403206675,1769266850568,2868.47033287,0.00011032,2]
[403206676,1769266850616,2131.52966713,0.00011032,2]
[403206679,1769266854928,-8468.48033287,0.00011032,2]
[403206680,1769266855112,-10000.01,0.00011032,2]
[403206681,1769266855287,-10000.01,0.00011032,2]
[403206683,1769266855714,-10000.01,0.00011032,2]
[403206684,1769266855951,-10000.01,0.00011032,2]
[403206685,1769266856116,-10000.01,0.00011032,2]
[403206688,1769266859542,-10000.01,0.00011032,2]
[403206689,1769266859760,-10000.01,0.00011032,2]
[403206690,1769266859950,-10000.01,0.00011032,2]
[403206691,1769266860138,-10000.01,0.00011032,2]
[403206692,1769266862620,-10000.01,0.00011032,2]
[403206694,1769266863137,-10000.01,0.00011032,2]
[403206695,1769266863312,-300.0,0.00011031,2]
[403206696,1769266863471,-9400.01,0.00011032,2]
[403206697,1769266863522,-10000.01,0.00011032,2]
[403206698,1769266863614,-10000.01,0.00011032,2]
[403206699,1769266863692,-10000.01,0.00011032,2]
[403206709,1769266874830,-2142.5344001,0.00010922,2]
[403206727,1769266902651,454.33,0.00010811,2]
[403206728,1769266902802,223.07489146,0.00010811,2]
[403206730,1769266905922,236.78,9.631e-05,2]
[403206732,1769266906336,473.56,0.00010506,2]
[403206733,1769266907161,664.75403121,0.00010536,2]
[403206739,1769266922694,300.0,0.00011031,2]
[403206756,1769266937104,1005.99358607,0.00011031,2]
[403206777,1769266956577,207.83714257,0.00010536,2]
[403206796,1769266982412,300.0,0.00011031,2]
[403206800,1769266985767,227.74,9.616e-05,2]
[403206801,1769266986209,455.48,0.0001049,2]
[403206817,1769267042757,300.0,0.00011031,2]
[403206822,1769267065199,219.05,9.65e-05,2]
[403206823,1769267065841,438.09,0.00010527,2]
[403206847,1769267102404,208.25154849,0.00011031,2]
[403206848,1769267102456,91.74845151,0.00011031,2]
[403206849,1769267102682,300.0,0.00011031,2]
[403206850,1769267109414,1200.0,0.00011031,2]
[403206851,1769267112132,151.0,0.00011032,2]
[403206852,1769267112788,151.0,0.00011032,2]
[403206853,1769267113430,151.0,0.00011032,2]
[403206854,1769267114041,151.0,0.00011032,2]
[403206860,1769267123812,183.1405659,0.00010932,2]
[403206862,1769267144538,210.68,9.567e-05,2]
[403206863,1769267144947,421.36,0.00010437,2]
[403206864,1769267162534,300.0,0.00011031,2]
[403206871,1769267223009,202.64,9.532e-05,2]
[403206872,1769267223362,405.27,0.00010398,2]
[403206873,1769267229400,300.0,0.00011031,2]
[403206875,1769267280268,189.04,3.436e-05,2]
[403206876,1769267280545,189.04,3.436e-05,2]
[403206877,1769267282472,300.0,0.00011031,2]
[403206878,1769267291437,5103.09098259,0.00010932,2]
[403206879,1769267291500,10000.01,0.00010932,2]
[403206880,1769267291564,10000.01,0.00010932,2]
[403206881,1769267291620,10000.01,0.00010932,2]
[403206882,1769267291672,10000.01,0.00010932,2]
[403206883,1769267291723,10000.01,0.00010932,2]
[403206884,1769267291776,10000.01,0.00010932,2]
[403206885,1769267291828,10000.01,0.00010932,2]
[403206886,1769267291880,10000.01,0.00010932,2]
[403206889,1769267303198,194.9,9.527e-05,2]
[403206890,1769267303631,389.8,0.00010393,2]
[403206894,1769267315892,5000.0,0.00010932,2]
[403206896,1769267319275,217.5528258,0.00010598,2]
[403206901,1769267337551,-8486.17927136,0.00010932,2]
[403206902,1769267337740,-10000.01,0.00010932,2]
[403206903,1769267337939,-10000.01,0.00010932,2]
[403206904,1769267338129,-10000.01,0.00010932,2]
[403206905,1769267338314,-10000.01,0.00010932,2]
[403206906,1769267338520,-10000.01,0.00010932,2]
[403206907,1769267338706,-10000.01,0.00010932,2]
[403206908,1769267338896,-10000.01,0.00010932,2]
[403206909,1769267339572,-10000.01,0.00010932,2]
[403206910,1769267339665,-10000.01,0.00010932,2]
[403206924,1769267364806,-5000.0,0.00010714,2]
[403206927,1769267377449,0.01,0.00010714,2]
[403206928,1769267377496,4999.99,0.00010714,2]
[403206930,1769267380509,-5000.0,0.00010822,2]
[403206933,1769267385233,0.01,0.00010822,2]
[403206934,1769267385286,4999.99,0.00010822,2]
[403206935,1769267388358,250.55,9.752e-05,2]
[403206938,1769267389090,501.11,0.00010639,2]
[403206946,1769267393747,4248.36,0.00010822,2]
[403206947,1769267393794,751.64,0.00010822,2]
[403206952,1769267401861,5000.0,0.00010921,2]
[403206954,1769267404985,790.47,9.7e-05,2]
[403206955,1769267405470,790.47,9.7e-05,2]
[403206956,1769267405966,790.47,9.7e-05,2]
[403206957,1769267406622,790.47,9.8e-05,2]
[403206958,1769267407216,790.47,9.8e-05,2]
[403206959,1769267407811,790.47,9.8e-05,2]
[403206960,1769267408354,257.19,9.8e-05,2]
[403206961,1769267408409,533.28,9.8e-05,2]
[403206962,1769267408923,790.47,9.8e-05,2]
[403206964,1769267409427,790.47,9.9e-05,2]
[403206965,1769267409895,790.47,9.9e-05,2]
[403206966,1769267409955,5000.0,0.00010921,2]
[403206967,1769267410517,790.47,9.9e-05,2]
[403206968,1769267411052,790.47,9.9e-05,2]
[403206969,1769267411647,790.47,9.9e-05,2]
[403206970,1769267412214,790.47,0.0001,2]
[403206971,1769267412717,790.47,0.0001,2]
[403206972,1769267413344,790.47,0.0001,2]
[403206973,1769267414025,790.47,0.0001,2]
[403206974,1769267414656,790.47,0.0001,2]
[403206975,1769267415212,790.47,0.000101,2]
[403206976,1769267415693,790.47,0.000101,2]
[403206977,1769267416106,790.47,0.000101,2]
[403206978,1769267416861,790.47,0.000101,2]
[403206979,1769267417477,790.47,0.000101,2]
[403206980,1769267418070,790.47,0.000102,2]
[403206981,1769267418580,514.37,0.00010921,2]
[403206982,1769267418632,4485.63,0.00010921,2]
[403206983,1769267419477,790.47,0.000102,2]
[403206985,1769267420298,790.47,0.000102,2]
[403206991,1769267420788,790.47,0.000102,2]
[403206995,1769267421181,790.47,0.000102,2]
[403206996,1769267424613,-790.47,0.000103,2]
[403206997,1769267424640,-790.47,0.000103,2]
[403206998,1769267424665,-44.32540958,0.000103,2]
[403206999,1769267425968,-237.61504632,0.000103,2]
[403207000,1769267428103,-263.43619253,0.000103,2]
[403207021,1769267432025,-245.09335157,0.000103,2]
[403207022,1769267432034,-61.16664843,0.000103,2]
[403207029,1769267432361,-266.04630616,0.000103,2]
[403207307,1769267435070,5000.0,0.0001018,2]
[403207601,1769267438132,-463.25704541,0.000103,2]
[403207603,1769267438142,-790.47,0.000103,2]
[403207606,1769267438153,-790.47,0.000103,2]
[403207608,1769267438164,-790.47,0.000104,2]
[403207610,1769267438173,-562.29429008,0.000104,2]
[403207612,1769267438186,-228.17570992,0.000104,2]
[403207614,1769267438196,-790.47,0.000104,2]
[403207616,1769267438207,-790.47,0.000104,2]
[403207618,1769267438217,-790.47,0.000104,2]
[403207620,1769267438226,-790.47,0.000105,2]
[403207622,1769267438237,-790.47,0.000105,2]
[403207624,1769267438247,-790.47,0.000105,2]
[403207626,1769267438257,-790.47,0.000105,2]
[403207628,1769267438266,-790.47,0.000105,2]
[403207630,1769267438276,-5000.0,0.00010532,2]
[403207632,1769267438286,-790.47,0.000106,2]
[403207634,1769267438295,-790.47,0.000106,2]
[403207636,1769267438304,-790.47,0.000106,2]
[403207638,1769267438315,-790.47,0.000106,2]
[403207640,1769267438323,-790.47,0.000106,2]
[403207642,1769267438333,-790.47,0.000107,2]
[403207644,1769267438343,-300.0,0.00010931,2]
[403207646,1769267438352,-573.0,0.00010931,2]
[403207648,1769267438361,-1064.0,0.00010931,2]
[403207650,1769267438371,-324.48343999,0.00010932,2]
[403207651,1769267438381,-816410.55974605,0.00010932,2]
[403207653,1769267438391,-500.0,0.00011032,2]
[403207655,1769267438400,-500.0,0.00011032,2]
[403207657,1769267438410,-300.0,0.00011252,2]
[403207659,1769267438419,-300.0,0.00011252,2]
[403207661,1769267438429,-300.0,0.00011252,2]
[403207663,1769267438440,-300.0,0.00011252,2]
[403207665,1769267438450,-300.0,0.00011252,2]
[403207667,1769267438460,-300.0,0.00011252,2]
[403207669,1769267438469,-300.0,0.00011252,2]
[403207671,1769267438478,-300.0,0.00011252,2]
[403207673,1769267438487,-300.0,0.00011252,2]
[403207675,1769267438496,-300.0,0.00011252,2]
[403207677,1769267438505,-300.0,0.00011252,2]
[403207679,1769267438515,-300.0,0.00011252,2]
[403207681,1769267438525,-300.0,0.00011252,2]
[403207683,1769267438534,-300.0,0.00011252,2]
[403207685,1769267438543,-300.0,0.00011252,2]
[403207687,1769267438557,-600.0,0.00011252,2]
[403207689,1769267438566,-12235.34417528,0.00011252,2]
[403207691,1769267438576,-151.0,0.000113,2]
[403207693,1769267438585,-151.0,0.000115,2]
[403207695,1769267438595,-152.59899815,0.00011522,2]
[403207697,1769267438608,-751.66,0.00011525,2]
[403207698,1769267438617,-500.0,0.00011616,2]
[403207700,1769267438629,-500.0,0.00011616,2]
[403207703,1769267438639,-193.882904,0.00011616,2]
[403207704,1769267438648,-500.0,0.00011616,2]
[403207706,1769267438658,-500.0,0.00011616,2]
[403207708,1769267438667,-500.0,0.00011753,2]
[403207710,1769267438676,-252.58455363,0.00011753,2]
[403207712,1769267438685,-500.0,0.00011753,2]
[403207713,1769267438694,-500.0,0.00011753,2]
[403207714,1769267438704,-500.0,0.00011753,2]
[403207715,1769267438714,-151.0,0.000118,2]
[403207716,1769267438723,-677.30996375,0.00011813,2]
[403207717,1769267438732,-334.30404379,0.00011813,2]
[403207718,1769267438742,-180.0,0.00011815,2]
[403207719,1769267438751,-177.34508648,0.00011815,2]
[403207720,1769267438761,-8032.23438818,0.00011863,2]
[403207722,1769267438771,-500.0,0.0001189,2]
[403207724,1769267438781,-315.01687446,0.0001189,2]
[403207725,1769267438790,-500.0,0.0001189,2]
[403207727,1769267438800,-500.0,0.0001189,2]
[403207729,1769267438809,-151.0,0.0001189,2]
[403207731,1769267438818,-151.0,0.0001189,2]
[403207733,1769267438828,-187.78006525,0.0001189,2]
[403207735,1769267438837,-151.0,0.0001189,2]
[403207736,1769267438847,-194.72792766,0.0001189,2]
[403207738,1769267438856,-151.0,0.0001189,2]
[403207740,1769267438865,-201.93286099,0.0001189,2]
[403207741,1769267438875,-151.0,0.0001189,2]
[403207742,1769267438885,-209.40437684,0.0001189,2]
[403207743,1769267438894,-151.0,0.0001189,2]
[403207745,1769267438903,-217.15233878,0.0001189,2]
[403207747,1769267438912,-250.0,0.0001189,2]
[403207748,1769267438922,-225.18697532,0.0001189,2]
[403207750,1769267438931,-517.80623311,0.0001189,2]
[403207751,1769267438942,-250.0,0.0001189,2]
[403207752,1769267438953,-233.51889341,0.0001189,2]
[403207753,1769267438963,-250.0,0.0001189,2]
[403207754,1769267438973,-242.15909246,0.0001189,2]
[403207755,1769267438983,-250.0,0.0001189,2]
[403207756,1769267438993,-251.11897888,0.0001189,2]
[403207757,1769267439003,-250.0,0.0001189,2]
[403207758,1769267439013,-260.4103811,0.0001189,2]
[403207759,1769267439024,-557.5788265,0.0001189,2]
[403207760,1769267439033,-270.0455652,0.0001189,2]
[403207762,1769267439043,-250.0,0.0001189,2]
[403207763,1769267439052,-280.03725112,0.0001189,2]
[403207764,1769267439062,-250.0,0.0001189,2]
[403207765,1769267439072,-227.73037515,0.0001189,2]
[403207766,1769267439082,-2487.15318209,0.0001189,2]
[403207767,1769267439093,-250.0,0.0001189,2]
[403207768,1769267439103,-250.0,0.0001189,2]
[403207769,1769267439113,-250.0,0.0001189,2]
[403207770,1769267439123,-250.0,0.0001189,2]
[403207771,1769267439132,-250.0,0.0001189,2]
[403207772,1769267439142,-250.0,0.0001189,2]
[403207773,1769267439159,-250.0,0.0001189,2]
[403207774,1769267439169,-1900.67653543,0.0001189,2]
[403207775,1769267439180,-500.0,0.0001189,2]
[403207776,1769267439189,-500.0,0.0001189,2]
[403207777,1769267439199,-500.0,0.0001189,2]
[403207778,1769267439210,-500.0,0.0001189,2]
[403207779,1769267439220,-500.0,0.0001189,2]
[403207780,1769267439230,-500.0,0.0001189,2]
[403207781,1769267439240,-500.0,0.0001189,2]
[403207782,1769267439250,-500.0,0.0001189,2]
[403207783,1769267439260,-238.55319979,0.0001189,2]
[403207784,1769267439270,-151.0,0.0001189,2]
[403207785,1769267439279,-152.99083282,0.0001189,2]
[403207786,1769267439292,-514.84070869,0.0001189,2]
[403207787,1769267439302,-420.0,0.00012013,2]
[403207788,1769267439311,-500.0,0.00012027,2]
[403207789,1769267439320,-151.0,0.000121,2]
[403207790,1769267439330,-500.0,0.00012137,2]
[403207791,1769267439340,-500.0,0.00012137,2]
[403207792,1769267439350,-500.0,0.00012137,2]
[403207793,1769267439360,-500.0,0.00012137,2]
[403207794,1769267439369,-500.0,0.00012137,2]
[403207795,1769267439379,-500.0,0.00012137,2]
[403207796,1769267439387,-500.0,0.00012137,2]
[403207797,1769267439397,-500.0,0.00012137,2]
[403207798,1769267439406,-500.0,0.00012137,2]
[403207799,1769267439416,-500.0,0.00012137,2]
[403207800,1769267439426,-500.0,0.00012137,2]
[403207801,1769267439436,-253.17343196,0.00012137,2]
[403207802,1769267439445,-500.0,0.00012137,2]
[403207803,1769267439455,-500.0,0.00012137,2]
[403207805,1769267439465,-200.0,0.00012137,2]
[403207806,1769267439474,-1066.15209811,0.00012149,2]
[403207807,1769267439483,-500.0,0.00012164,2]
[403207808,1769267439492,-500.0,0.00012164,2]
[403207809,1769267439501,-500.0,0.00012274,2]
[403207810,1769267439511,-500.0,0.00012274,2]
[403207811,1769267439520,-500.0,0.00012274,2]
[403207812,1769267439529,-250.0,0.00012274,2]
[403207813,1769267439539,-720.0,0.00012277,2]
[403207814,1769267439548,-162.18,0.00012277,2]
[403207816,1769267439561,-151.0,0.000123,2]
[403207817,1769267439570,-160.0,0.000123,2]
[403207818,1769267439579,-160.0,0.000123,2]
[403207819,1769267439588,-500.0,0.00012301,2]
[403207820,1769267439599,-2073.77,0.00012329,2]
[403207821,1769267439609,-1728.14,0.00012329,2]
[403207822,1769267439618,-1440.12,0.00012329,2]
[403207823,1769267439628,-1200.1,0.00012329,2]
[403207824,1769267439637,-1000.08,0.00012329,2]
[403207825,1769267439647,-833.4,0.00012329,2]
[403207826,1769267439656,-694.5,0.00012329,2]
[403207828,1769267439666,-578.75,0.00012329,2]
[403207829,1769267439675,-482.29,0.00012329,2]
[403207830,1769267439685,-401.91,0.00012329,2]
[403207831,1769267439695,-334.93,0.00012329,2]
[403207832,1769267439704,-279.11,0.00012329,2]
[403207833,1769267439714,-232.59,0.00012329,2]
[403207834,1769267439724,-1337.21617515,0.00012347,2]
[403207836,1769267439733,-720.0,0.00012377,2]
[403207837,1769267439746,-500.0,0.00012411,2]
[403207838,1769267439755,-500.0,0.00012411,2]
[403207839,1769267439765,-500.0,0.00012411,2]
[403207840,1769267439774,-1002.22,0.00012412,2]
[403207841,1769267439784,-500.0,0.00012438,2]
[403207842,1769267439794,-2579.17784983,0.00012438,2]
[403207843,1769267439804,-533.88981491,0.00012438,2]
[403207844,1769267439814,-500.0,0.00012548,2]
[403207845,1769267439825,-500.0,0.00012548,2]
[403207846,1769267439835,-151.0,0.000126,2]
[403207847,1769267439846,-2709.23985501,0.00012675,2]
[403207849,1769267439855,-500.0,0.00012685,2]
[403207850,1769267439865,-500.0,0.00012685,2]
[403207851,1769267439875,-500.0,0.00012712,2]
[403207852,1769267439885,-252.02297164,0.00012739,2]
[403207853,1769267439895,-500.0,0.00012739,2]
[403207854,1769267439904,-500.0,0.00012739,2]
[403207855,1769267439914,-201.03981442,0.00012739,2]
[403207856,1769267439924,-160.0,0.00012739,2]
[403207857,1769267439933,-160.0,0.00012739,2]
[403207858,1769267439943,-207.63492124,0.00012739,2]
[403207859,1769267439952,-203.456,0.00012785,2]
[403207860,1769267439962,-203.456,0.00012785,2]
[403207861,1769267439971,-160.0,0.000128,2]
[403207862,1769267439981,-160.0,0.000128,2]
[403207863,1769267439990,-213.75099845,0.00012822,2]
[403207864,1769267439999,-450.0,0.00012822,2]
[403207865,1769267440009,-359.14030444,0.00012822,2]
[403207866,1769267440019,-500.0,0.00012876,2]
[403207867,1769267440029,-202.09687579,0.00012876,2]
[403207868,1769267440038,-500.0,0.00012876,2]
[403207869,1769267440048,-151.0,0.000129,2]
[403207870,1769267440057,-348.0,0.00012922,2]
[403207871,1769267440067,-382.89045918,0.00012932,2]
[403207872,1769267440076,-500.0,0.00012986,2]
[403207873,1769267440086,-2674.60743027,0.00012986,2]
[403207874,1769267440098,-553.64373807,0.00012986,2]
[403207875,1769267440107,-665.629,0.00013001,2]
[403207876,1769267440117,-1368.0,0.00013001,2]
[403207877,1769267440126,-2149.0,0.00013001,2]
[403207878,1769267440136,-798.345,0.00013001,2]
[403207879,1769267440146,-201.342,0.00013001,2]
[403207880,1769267440155,-418.0,0.00013001,2]
[403207881,1769267440164,-500.0,0.00013013,2]
[403207882,1769267440174,-500.0,0.00013013,2]
[403207883,1769267440183,-160.0,0.000131,2]
[403207884,1769267440192,-160.0,0.000131,2]
[403207885,1769267440202,-500.0,0.0001315,2]
[403207886,1769267440212,-500.0,0.0001315,2]
[403207887,1769267440222,-151.0,0.000132,2]
[403207888,1769267440231,-587.0,0.00013202,2]
[403207889,1769267440241,-500.0,0.0001326,2]
[403207890,1769267440251,-3008.73639409,0.00013262,2]
[403207891,1769267440262,-150.0,0.00013267,2]
[403207892,1769267440272,-519.07466865,0.00013273,2]
[403207893,1769267440282,-638.20933929,0.00013273,2]
[403207894,1769267440292,-454.44780266,0.00013273,2]
[403207895,1769267440302,-507.01248361,0.00013273,2]
[403207896,1769267440311,-351.17401254,0.00013273,2]
[403207897,1769267440321,-500.0,0.00013273,2]
[403207898,1769267440331,-500.0,0.00013273,2]
[403207899,1769267440340,-500.0,0.00013273,2]
[403207900,1769267440350,-526.40517274,0.00013273,2]
[403207901,1769267440360,-502.30753601,0.00013273,2]
[403207902,1769267440371,-500.0,0.00013273,2]
[403207903,1769267440381,-500.0,0.00013273,2]
[403207904,1769267440391,-500.0,0.00013273,2]
[403207906,1769267440400,-500.0,0.00013273,2]
[403207907,1769267440410,-505.9050703,0.00013273,2]
[403207908,1769267440420,-158.11625829,0.00013273,2]
[403207909,1769267440430,-602.28532512,0.00013273,2]
[403207910,1769267440440,-500.0,0.00013273,2]